bitfinex/quotes_ETHUSD_20260130
["timestamp","ask_amount","ask_price","bid_price","bid_amount"]
[1769787857845,7.186,2739.0,2736.9,16.18390234]
[1769787858144,13.40528805,2739.3,2737.0,13.71616819]
[1769787858339,13.40528805,2739.3,2737.2,13.71616819]
[1769787858554,13.40528805,2739.3,2737.4,13.71616819]
[1769787858755,1.3405288,2739.2,2737.5,1.44821682]
[1769787858951,1.3405288,2739.2,2737.5,15.16438501]
[1769787859152,0.002,2739.3,2737.7,13.71616819]
[1769787859356,0.002,2739.3,2737.8,14.48216819]
[1769787860268,0.94421699,2740.3,2737.8,14.48216819]
[1769787860269,0.30401299,2740.3,2738.3,13.71616819]
[1769787860480,0.30241299,2740.3,2738.8,13.73092398]
[1769787860702,0.30241299,2740.3,2739.0,0.01475579]
[1769787861176,0.30241299,2740.3,2739.0,0.92747584]
[1769787861389,0.30241299,2740.3,2739.0,0.92748508]
[1769787861593,0.30241299,2740.3,2739.1,0.766]
[1769787862154,0.30241299,2740.3,2739.1,15.02989678]
[1769787862592,13.40328805,2741.2,2739.5,0.01475579]
[1769787862782,13.40328805,2741.2,2739.7,0.01475579]
[1769787863168,13.40328805,2741.2,2739.8,0.91247536]
[1769787863757,13.40328805,2741.7,2739.8,0.91247536]
[1769787864089,13.40328805,2742.1,2740.0,13.73092398]
[1769787864395,13.40328805,2742.1,2740.3,0.01475579]
[1769787864900,13.40328805,2742.1,2740.1,1.3730924]
[1769787865103,13.40328805,2741.9,2740.2,0.766]
[1769787865263,13.40328805,2741.9,2740.3,0.766]
[1769787866406,13.40328805,2741.7,2739.6,0.91254035]
[1769787866696,13.40328805,2741.7,2739.9,0.766]
[1769787866906,13.40328805,2741.7,2740.0,0.766]
[1769787867070,1.34032881,2741.6,2740.0,0.766]
[1769787867277,13.40328805,2741.6,2740.0,0.766]
[1769787867678,14.16928805,2741.5,2740.0,0.766]
[1769787868246,0.766,2741.5,2740.0,0.766]
[1769787868568,13.40328805,2741.4,2740.0,0.766]
[1769787869010,13.40328805,2741.4,2739.6,13.71616819]
[1769787869185,1.41692881,2741.3,2739.9,0.765]
[1769787870605,14.82021686,2741.3,2739.9,0.765]
[1769787870803,1.41692881,2741.3,2739.9,0.765]
[1769787871095,0.766,2741.5,2739.9,15.39359231]
[1769787871467,0.766,2741.5,2739.9,14.48116819]
[1769787871764,14.16928805,2741.5,2740.0,0.765]
[1769787871988,14.16928805,2741.5,2739.7,1.46287225]
[1769787872186,14.16928805,2741.5,2739.5,14.62872178]
[1769787872187,14.16928805,2741.5,2739.8,0.765]
[1769787872885,13.40328805,2741.5,2739.8,14.48116819]
[1769787873090,0.002,2741.3,2739.8,14.49592398]
[1769787873491,0.002,2741.5,2740.3,13.71616819]
[1769787873683,0.002,2741.5,2740.4,0.765]
[1769787873885,0.002,2741.5,2740.5,1.44811682]
[1769787874213,0.002,2741.5,2740.4,0.765]
[1769787874781,0.002,2741.5,2740.5,0.765]
[1769787874981,0.002,2741.5,2740.6,0.765]
[1769787875913,0.002,2741.5,2740.4,0.765]
[1769787876917,13.09078229,2741.4,2740.0,0.765]
[1769787877132,1.30927823,2741.3,2740.1,0.91235752]
[1769787877333,0.002,2741.5,2740.0,0.765]
[1769787877478,0.002,2741.5,2740.0,1.67740801]
[1769787877811,0.002,2741.5,2740.0,1.6774038]
[1769787877984,13.63283811,2741.5,2739.8,13.97718577]
[1769787878314,13.61808232,2741.5,2740.0,0.91240757]
[1769787878516,1.43830823,2741.4,2739.9,1.67743569]
[1769787878810,1.43830823,2741.4,2739.9,0.765]
[1769787879010,1.43830823,2741.4,2740.0,0.91240543]
[1769787879225,1.43830823,2741.4,2740.0,0.91240734]
[1769787879736,1.43830823,2741.4,2739.9,0.765]
[1769787879896,1.50563906,2741.3,2740.0,14.41867553]
[1769787880217,0.002,2741.5,2740.0,14.41867553]
[1769787881936,0.002,2741.5,2740.1,0.91237546]
[1769787882439,0.002,2741.5,2740.1,14.88956123]
[1769787883445,0.002,2741.5,2739.5,13.97718577]
[1769787883446,13.61808232,2741.5,2739.5,13.97718577]
[1769787883729,13.61808232,2741.5,2739.9,0.91241368]
[1769787883730,1.36180823,2741.4,2739.9,0.91241368]
[1769787884033,1.36180823,2741.4,2739.7,14.88969443]
[1769787884184,14.97789055,2741.4,2739.7,14.88969443]
[1769787885388,14.97789055,2741.4,2739.6,1.39771858]
[1769787885590,13.61608232,2741.2,2739.7,0.765]
[1769787885827,0.58544821,2741.1,2739.2,14.89086053]
[1769787886000,13.61608232,2741.0,2740.3,0.001]
[1769787887026,13.61608232,2740.4,2739.2,0.001]
[1769787887229,0.01475579,2740.3,2739.2,0.001]
[1769787887508,1.36308381,2740.2,2739.2,0.001]
[1769787888120,0.01475579,2740.1,2739.2,0.001]
[1769787888305,14.97916613,2740.2,2739.2,0.001]
[1769787888754,1.36308381,2740.2,2739.2,0.001]
[1769787888958,13.63083811,2740.7,2739.2,0.001]
[1769787889413,0.01475579,2740.5,2739.2,0.001]
[1769787889609,13.63083811,2740.7,2739.2,0.001]
[1769787889827,13.61608232,2740.7,2739.2,0.001]
[1769787892713,0.01475579,2740.6,2739.3,0.765]
[1769787892936,1.36308381,2740.5,2739.3,0.765]
[1769787893539,1.36308381,2740.5,2739.2,0.001]
[1769787893716,1.36308381,2740.5,2739.3,0.765]
[1769787894445,1.36308381,2740.5,2739.3,1.67763127]
[1769787894646,13.63083811,2741.0,2739.3,1.67763127]
[1769787894647,13.61608232,2741.0,2739.3,15.65481704]
[1769787895014,13.63083811,2740.7,2739.2,0.001]
[1769787895220,13.61608232,2740.4,2739.2,0.001]
[1769787896335,13.63083811,2740.0,2739.2,0.001]
[1769787896533,13.63083811,2740.0,2738.1,15.09155172]
[1769787896534,13.63083811,2739.8,2738.2,1.67798368]
[1769787896717,0.01475579,2739.6,2738.2,1.67798368]
[1769787897031,13.63083811,2739.8,2738.3,0.91297138]
[1769787897233,13.63083811,2739.8,2738.4,0.765]
[1769787897234,13.61608232,2739.8,2738.4,0.765]
[1769787897438,1.36308381,2739.9,2738.4,1.67792268]
[1769787897638,0.01475579,2739.9,2738.4,1.67792268]
[1769787898756,0.002,2740.8,2739.2,13.97718577]
[1769787898920,0.765,2740.5,2739.2,13.97718577]
[1769787899252,0.765,2740.5,2738.7,13.97718577]
[1769787899551,0.765,2740.5,2738.9,13.97718577]
[1769787899945,0.765,2740.4,2739.1,13.97718577]
[1769787900549,0.765,2740.4,2739.2,14.889861]
[1769787900857,0.002,2740.8,2739.2,14.889861]
[1769787901041,0.765,2740.7,2739.2,14.90461679]
[1769787901247,0.765,2740.7,2739.3,1.85553177]
[1769787901416,0.765,2740.7,2738.8,1.39919416]
[1769787901417,14.38108232,2740.7,2738.8,1.39919416]
[1769787901751,14.38108232,2740.7,2738.2,13.97718577]
[1769787901752,13.63083811,2740.2,2738.2,13.97718577]
[1769787901919,13.63083811,2740.2,2738.3,3.65187995]
[1769787902118,13.63083811,2740.2,2738.5,0.91289024]
[1769787902434,13.61608232,2740.0,2738.3,0.9129752]
[1769787902634,0.765,2739.9,2738.3,14.89016097]
[1769787902853,0.765,2739.8,2738.4,15.83286753]
[1769787904721,0.765,2739.8,2738.5,14.89009429]
[1769787905650,0.765,2739.8,2738.4,1.85568176]
[1769787905852,0.765,2739.8,2738.1,1.11436595]
[1769787905853,13.61608232,2739.6,2738.1,1.11436595]
[1769787906055,0.765,2739.5,2738.2,13.97718577]
[1769787906230,0.765,2739.4,2738.2,13.97718577]
[1769787906422,0.765,2739.4,2738.4,0.91293486]
[1769787906623,0.765,2739.4,2738.5,0.45648291]
[1769787906824,13.61608232,2739.9,2738.5,0.45648291]
[1769787906825,13.61608232,2739.9,2738.6,0.91287519]
[1769787907058,13.17840804,2740.3,2738.6,0.91287519]
[1769787907260,13.17840804,2740.7,2738.6,13.53460964]
[1769787907435,0.765,2740.2,2738.6,12.60697866]
[1769787907626,13.94340804,2740.2,2738.7,1.26069787]
[1769787907828,13.94340804,2740.2,2738.5,0.91289882]
[1769787908731,13.17840804,2740.0,2738.5,0.91289882]
[1769787909044,0.01475579,2740.6,2738.3,12.60697866]
[1769787909045,13.17840804,2740.4,2738.3,12.60697866]
[1769787909356,13.17840804,2740.9,2738.7,12.60697866]
[1769787909571,0.765,2740.3,2738.7,12.60697866]
[1769787909736,0.765,2740.3,2738.8,13.8691521]
[1769787910262,13.94340804,2740.3,2738.8,1.26217344]
[1769787910457,13.94340804,2740.3,2738.4,12.60697866]
[1769787910637,0.765,2740.3,2738.4,12.60697866]
[1769787910837,13.19516383,2740.8,2738.5,0.91290852]
[1769787911035,13.94340804,2740.7,2738.6,12.60697866]
[1769787911236,13.17840804,2740.5,2738.6,12.60697866]
[1769787911557,14.51248021,2740.4,2738.7,1.3534643]
[1769787911759,14.49772442,2740.4,2738.7,1.3534643]
[1769787911934,14.49772442,2740.4,2738.7,13.96044296]
[1769787912129,0.765,2740.3,2738.7,13.96044296]
[1769787912551,13.95816383,2740.3,2738.7,1.3534643]
[1769787912754,13.95816383,2740.3,2738.5,0.91290852]
[1769787912755,14.70615606,2740.2,2738.5,0.91290852]
[1769787913063,13.19316383,2740.1,2738.4,13.51992052]
[1769787913315,13.17840804,2739.8,2738.3,0.001]
[1769787913433,13.17840804,2739.8,2738.3,0.91397258]
[1769787913746,13.17840804,2739.8,2738.3,0.91397354]
[1769787914079,14.49772442,2739.7,2738.3,0.91397251]
[1769787914383,0.765,2739.6,2738.3,0.91397251]
[1769787914936,0.765,2739.6,2738.3,0.001]
[1769787916068,13.17840804,2740.0,2738.3,0.001]
[1769787916367,6.42,2740.5,2738.3,0.001]
[1769787916368,13.17840804,2740.4,2738.3,12.60797866]
[1769787916532,0.765,2739.9,2738.5,12.60697866]
[1769787917106,0.765,2739.9,2738.6,0.91287519]
[1769787917935,0.765,2739.8,2738.6,0.91287519]
[1769787918467,13.94340804,2739.8,2738.4,1.3535743]
[1769787918665,13.94340804,2739.8,2738.3,0.91394798]
[1769787919052,13.94340804,2739.8,2738.3,0.001]
[1769787919257,13.17840804,2739.8,2738.3,0.001]
[1769787919471,13.17840804,2740.2,2738.3,12.60797866]
[1769787919671,0.765,2739.7,2738.4,13.95907738]
[1769787919965,0.765,2740.0,2738.4,13.95907738]
[1769787921163,0.765,2740.0,2738.5,0.91290852]
[1769787922467,13.94340804,2740.0,2738.4,14.87199529]
[1769787922667,1.3943408,2739.9,2738.6,12.60697866]
[1769787922871,13.94340804,2739.9,2738.5,1.85248491]
[1769787923171,13.94340804,2739.9,2738.4,0.91293719]
[1769787923357,13.94340804,2739.9,2738.3,0.001]
[1769787923667,13.19316383,2739.8,2738.3,0.001]
[1769787923970,13.17840804,2739.6,2738.3,0.001]
[1769787924273,0.765,2739.5,2738.3,0.001]
[1769787924773,0.765,2739.5,2738.3,12.60797866]
[1769787925169,0.765,2739.5,2738.3,0.001]
[1769787925555,13.17840804,2739.3,2738.3,0.001]
[1769787925741,1.31931638,2739.2,2738.3,0.001]
[1769787925939,14.51248021,2739.2,2737.5,0.91322672]
[1769787926172,13.17840804,2738.9,2737.3,0.91330679]
[1769787926363,13.17840804,2738.7,2737.2,0.91332108]
[1769787926942,13.17840804,2738.7,2737.2,0.91332645]
[1769787927143,13.17840804,2738.4,2736.8,1.67845511]
[1769787927374,13.17840804,2738.4,2736.2,16.26157014]
[1769787927673,13.17840804,2738.2,2736.2,17.02655605]
[1769787927848,13.94340804,2738.1,2736.2,13.37197866]
[1769787928175,0.765,2738.1,2736.8,0.9134676]
[1769787928396,0.765,2738.1,2736.9,0.45673803]
[1769787928680,0.765,2738.1,2736.8,0.9134676]
[1769787929274,13.17840804,2738.5,2736.7,3.6539395]
[1769787929480,0.765,2738.4,2736.7,0.91350897]
[1769787929980,13.94340804,2738.4,2736.7,0.91350897]
[1769787930192,1.3943408,2738.3,2736.8,1.79395251]
[1769787930348,14.58750463,2738.3,2736.6,0.765]
[1769787930690,14.57274884,2738.3,2736.6,0.765]
[1769787930871,14.57274884,2738.3,2736.6,1.6785367]
[1769787931199,13.19316383,2738.1,2736.0,1.57501383]
[1769787931398,13.19316383,2737.7,2736.1,0.52300376]
[1769787931598,13.17840804,2737.4,2735.9,0.766]
[1769787932370,13.17840804,2737.4,2735.9,1.67976435]
[1769787932585,0.01475579,2737.5,2735.5,0.002]
[1769787932586,13.17840804,2737.2,2735.5,0.002]
[1769787932889,0.01475579,2737.5,2735.6,3.65549513]
[1769787933094,13.94440804,2737.4,2737.1,0.001]
[1769787933276,13.94440804,2737.4,2735.7,1.27957597]
[1769787933661,0.01475579,2737.3,2735.7,1.27957597]
[1769787933861,0.766,2737.2,2735.7,1.27957597]
[1769787934164,13.17840804,2737.8,2735.8,13.37297866]
[1769787934364,0.766,2737.7,2735.9,14.07223412]
[1769787935362,0.766,2737.7,2736.0,0.91374269]
[1769787935589,0.766,2737.6,2736.0,0.91374269]
[1769787936092,13.17840804,2738.2,2736.0,13.52072135]
[1769787936397,0.766,2737.9,2736.0,13.52072135]
[1769787936605,13.17840804,2738.2,2736.0,13.52072135]
[1769787936762,13.17840804,2738.2,2736.1,0.01475579]
[1769787937109,0.766,2738.1,2736.2,13.70039962]
[1769787937416,0.766,2738.1,2736.2,14.61405891]
[1769787937417,14.57952338,2738.1,2736.2,14.61405891]
[1769787937699,13.79876759,2737.8,2736.3,1.46140589]
[1769787937897,0.766,2737.7,2736.3,1.46140589]
[1769787939203,13.79876759,2737.4,2735.9,1.46525546]
[1769787939368,13.81352338,2737.3,2735.8,0.766]
[1769787939571,13.81352338,2736.9,2735.5,0.002]
[1769787939896,0.766,2736.8,2735.5,0.91590703]
[1769787940091,0.766,2736.7,2735.8,0.91380899]
[1769787940265,13.79876759,2737.3,2735.8,0.91380899]
[1769787940591,15.95940014,2737.2,2735.5,0.91588927]
[1769787940803,13.81352338,2737.0,2735.5,0.002]
[1769787941003,13.79876759,2737.0,2735.6,0.91385715]
[1769787941307,2.14587676,2737.2,2735.7,0.91382041]
[1769787941474,13.81352338,2737.1,2735.5,0.002]
[1769787941809,13.79876759,2736.9,2735.5,0.002]
[1769787941966,1.59594001,2737.0,2735.5,0.002]
[1769787942164,13.79876759,2737.3,2735.5,0.002]
[1769787942364,0.766,2737.2,2735.5,0.002]
[1769787942565,14.56476759,2737.2,2735.5,0.002]
[1769787943894,13.79876759,2737.0,2735.5,0.002]
[1769787945514,0.01475579,2737.3,2735.5,13.583828]
[1769787945718,14.57952338,2737.2,2735.7,0.002]
[1769787946037,14.57952338,2737.2,2735.7,0.91584289]
[1769787946186,14.57952338,2737.2,2735.7,0.002]
[1769787946187,13.79876759,2736.9,2735.7,0.002]
[1769787946726,0.766,2736.8,2735.7,0.002]
[1769787947041,15.25524435,2736.7,2735.7,0.002]
[1769787947324,13.79876759,2736.5,2735.5,0.002]
[1769787948119,13.81352338,2736.4,2735.5,0.002]
[1769787948299,0.766,2736.3,2735.5,0.002]
[1769787948502,1.45795234,2736.2,2735.5,0.002]
[1769787949920,0.766,2736.1,2735.5,0.002]
[1769787951931,1.45795234,2736.2,2735.5,0.002]
[1769787952137,0.766,2736.1,2735.5,0.002]
[1769787953132,13.81352338,2737.6,2735.5,13.583828]
[1769787953318,13.79876759,2737.6,2735.5,13.583828]
[1769787953499,0.766,2737.3,2735.5,13.583828]
[1769787953900,13.81352338,2737.2,2735.6,0.91387629]
[1769787954208,13.79876759,2737.2,2735.6,0.91387629]
[1769787954413,2.09847676,2737.1,2735.7,1.81533428]
[1769787954605,7.186,2737.3,2735.7,1.81533428]
[1769787955233,20.98476759,2737.3,2735.7,1.81533428]
[1769787955402,13.79876759,2737.1,2735.5,0.91590709]
[1769787955906,13.79876759,2737.1,2735.5,0.002]
[1769787956832,13.79876759,2736.7,2735.5,0.002]
[1769787957019,0.78075579,2736.6,2735.5,0.002]
[1769787957406,14.57952338,2736.6,2735.5,0.002]
[1769787957612,1.45795234,2736.5,2735.5,0.002]
[1769787958039,13.81352338,2737.0,2735.5,0.002]
[1769787958238,0.766,2736.9,2735.5,0.002]
[1769787958643,6.42,2737.1,2735.5,13.583828]
[1769787958816,0.766,2737.0,2735.5,13.583828]
[1769787959141,6.42,2737.1,2735.5,13.583828]
[1769787959342,0.642,2737.0,2735.7,0.002]
[1769787959516,0.766,2737.3,2735.7,14.349828]
[1769787959716,0.001,2737.1,2735.7,14.349828]
[1769787959911,0.195,2737.3,2735.7,14.349828]
[1769787960143,0.1942,2737.3,2735.8,14.49563748]
[1769787960469,0.001,2737.4,2736.0,13.581828]
[1769787962009,0.001,2737.4,2736.1,14.49553729]
[1769787963010,0.001,2737.4,2735.9,1.89188754]
[1769787963335,13.81452338,2737.4,2735.8,0.766]
[1769787963939,13.81452338,2737.4,2735.7,0.002]
[1769787963940,0.01475579,2736.6,2735.7,0.002]
[1769787964265,0.766,2736.5,2735.7,0.002]
[1769787965550,3.857,2737.4,2735.7,13.583828]
[1769787965551,0.001,2737.4,2735.7,13.583828]
[1769787965717,0.001,2737.4,2735.8,1.3583828]
[1769787966036,0.001,2737.4,2735.8,2.1243828]
[1769787966037,13.79976759,2737.4,2735.8,2.1243828]
[1769787966349,13.79976759,2737.4,2735.8,0.766]
[1769787966536,13.79976759,2737.4,2735.7,0.002]
[1769787967346,13.60596075,2737.1,2735.7,0.002]
[1769787967546,0.766,2737.0,2735.7,0.002]
[1769787968344,14.38671654,2737.0,2735.7,0.002]
[1769787968546,13.60596075,2736.7,2735.7,0.002]
[1769787969548,1.43867165,2736.9,2735.7,0.002]
[1769787970419,0.766,2736.8,2735.7,0.002]
[1769787971249,13.60596075,2737.3,2735.7,13.19198639]
[1769787971641,0.001,2737.4,2735.9,0.002]
[1769787971842,0.001,2737.4,2735.9,1.39799864]
[1769787972350,0.001,2737.4,2735.9,2.31177119]
[1769787972549,0.001,2737.4,2735.9,2.31177425]
[1769787972729,0.001,2737.4,2735.9,1.39799864]
[1769787973053,13.62171654,2737.4,2735.9,1.39799864]
[1769787973226,13.62071654,2737.0,2735.9,0.002]
[1769787974036,13.60596075,2737.0,2735.9,0.002]
[1769787974243,1.43877165,2737.3,2735.9,0.002]
[1769787974461,0.001,2737.4,2735.9,13.19198639]
[1769787975373,0.001,2737.4,2736.0,0.766]
[1769787975575,0.001,2737.4,2736.0,13.95598639]
[1769787975721,13.60596075,2738.7,2736.5,13.18998639]
[1769787975921,14.37196075,2738.7,2736.5,13.18998639]
[1769787976134,1.43719608,2738.6,2736.7,13.18998639]
[1769787976334,1.43719608,2738.6,2736.8,14.86946198]
[1769787976739,1.45195187,2738.6,2736.8,14.86946198]
[1769787977125,0.01475579,2738.4,2736.8,14.86946198]
[1769787978342,0.01475579,2738.6,2736.8,14.86946198]
[1769787978560,0.01475579,2738.3,2736.8,14.86946198]
[1769787979069,0.01475579,2738.3,2736.6,1.32047422]
[1769787979070,0.01475579,2737.9,2736.6,1.32047422]
[1769787979251,0.01475579,2737.7,2736.6,1.32047422]
[1769787979634,0.01475579,2738.0,2736.5,0.766]
[1769787979935,0.01475579,2738.0,2736.5,1.6795656]
[1769787980361,0.01475579,2738.3,2736.5,14.86953979]
[1769787980861,0.01475579,2738.1,2736.5,14.86953979]
[1769787981570,0.01475579,2738.4,2736.5,14.86953979]
[1769787981778,0.01475579,2738.2,2736.6,15.04238367]
[1769787982284,0.01475579,2738.2,2736.7,0.91350897]
[1769787982575,0.01475579,2737.8,2736.6,15.95591041]
[1769787982741,0.01475579,2738.0,2736.6,1.85239728]
[1769787982928,0.01475579,2737.3,2735.7,13.19198639]
[1769787983130,0.01475579,2737.3,2736.0,0.766]
[1769787983352,0.766,2737.6,2736.0,13.95598639]
[1769787983549,0.01475579,2737.8,2736.3,0.91364126]
[1769787983830,0.01475579,2737.6,2736.1,13.18998639]
[1769787984030,0.01475579,2737.4,2736.1,14.1036948]
[1769787984330,0.01475579,2737.6,2736.1,14.10367794]
[1769787984548,0.01475579,2737.4,2736.1,14.10369538]
[1769787985174,0.01475579,2737.6,2736.1,14.10369538]
[1769787985340,0.01475579,2737.6,2736.7,0.002]
[1769787986673,1.37830302,2737.8,2736.7,0.002]
[1769787987270,0.01475579,2737.6,2736.7,0.002]
[1769787990060,0.01475579,2737.4,2736.7,0.002]
[1769787990264,0.01475579,2737.6,2736.7,0.002]
[1769787990564,0.01475579,2737.4,2736.7,0.002]
[1769787991864,0.01475579,2737.2,2736.5,0.002]
[1769787992062,0.01475579,2737.2,2735.9,0.002]
[1769787992063,0.01475579,2737.0,2735.9,0.0012]
[1769787992362,0.01475579,2737.0,2735.7,0.002]
[1769787992363,13.62071654,2736.6,2735.7,0.002]
[1769787992570,0.01475579,2736.4,2735.7,0.002]
[1769787993066,13.62071654,2736.6,2735.7,0.002]
[1769787994148,0.01475579,2736.6,2735.7,0.002]
[1769787994465,0.766,2736.9,2735.7,0.002]
[1769787994863,1.36354723,2737.2,2735.8,0.91380948]
[1769787995161,2.12954723,2737.2,2735.7,15.42540724]
[1769787995566,2.12954723,2737.2,2735.7,14.51158503]
[1769787995734,0.01475579,2737.1,2735.7,14.51158503]
[1769787995929,0.01475579,2737.1,2735.7,1.32159864]
[1769787996136,0.2144303,2737.0,2735.7,0.002]
[1769787996567,0.01475579,2736.9,2735.7,0.002]
[1769787996755,0.01475579,2736.5,2735.7,0.002]
[1769787997282,0.2144303,2737.0,2735.7,0.002]
[1769787997434,0.9804303,2737.0,2735.7,0.002]
[1769787997863,0.2144303,2737.0,2735.7,0.002]
[1769787998070,0.2144303,2737.0,2735.7,13.24396456]
[1769787998373,6.42,2737.3,2735.9,13.24196456]
[1769787998537,14.84717877,2737.8,2735.9,13.24196456]
[1769787998877,1.36354723,2737.8,2735.9,13.24396456]
[1769787999079,0.001,2737.9,2735.9,13.24396456]
[1769787999245,0.001,2737.9,2736.1,13.24196456]
[1769787999440,0.01475579,2737.8,2736.3,13.24196456]
[1769787999771,0.001,2737.9,2736.3,13.24196456]
[1769788000506,0.001,2737.9,2736.4,13.24196456]
[1769788000648,0.766,2738.9,2736.7,13.24196456]
[1769788000956,0.01475579,2738.3,2736.7,13.24196456]
[1769788001161,0.01475579,2738.2,2736.8,0.91347559]
[1769788001360,14.23327575,2738.9,2736.8,14.15544015]
[1769788001550,0.7644,2738.9,2736.8,14.15544015]
[1769788001752,0.01475579,2739.0,2737.0,13.24196456]
[1769788001948,0.78075579,2739.2,2737.0,13.24196456]
[1769788002374,0.01475579,2739.0,2737.0,13.24196456]
[1769788002580,0.01475579,2739.0,2736.6,3.66865815]
[1769788002581,13.46887575,2737.5,2735.9,0.002]
[1769788002749,1.36323132,2736.6,2735.7,0.002]
[1769788002961,13.46887575,2737.0,2734.9,0.92886012]
[1769788003388,0.01475579,2736.6,2734.6,0.002]
[1769788003600,13.46887575,2736.3,2734.6,0.002]
[1769788003958,13.46887575,2736.1,2734.6,0.002]
[1769788004151,13.46887575,2735.9,2734.6,0.002]
[1769788004801,1.34836315,2736.0,2734.6,0.002]
[1769788004802,13.46887575,2735.6,2734.6,0.002]
[1769788004988,14.23487575,2735.6,2734.6,0.002]
[1769788005658,0.766,2735.5,2734.6,0.002]
[1769788005994,2.14290457,2735.5,2734.6,0.002]
[1769788006153,15.61178032,2735.5,2734.6,0.002]
[1769788007394,15.61178032,2735.5,2734.4,0.002]
[1769788007596,13.47687575,2734.0,2731.1,1.85472339]
[1769788007764,13.46887575,2733.6,2731.3,0.01475579]
[1769788007965,13.46887575,2733.4,2731.3,0.01475579]
[1769788008172,13.46887575,2733.2,2731.3,0.01475579]
[1769788008372,15.33956384,2733.1,2730.9,0.01475579]
[1769788008572,15.33956384,2733.1,2730.7,0.01475579]
[1769788008573,13.46887575,2732.9,2730.7,0.01475579]
[1769788008799,13.46887575,2732.9,2729.7,0.766]
[1769788008800,13.46887575,2732.3,2729.7,0.78075579]
[1769788008999,13.46887575,2732.3,2730.0,0.01475579]
[1769788009000,13.46887575,2732.1,2730.0,0.01475579]
[1769788009199,13.46887575,2731.9,2730.2,0.01475579]
[1769788009398,0.766,2731.8,2730.4,0.01475579]
[1769788009897,13.78422951,2731.9,2730.4,0.01475579]
[1769788010071,0.766,2731.7,2730.4,0.01475579]
[1769788010267,1.08135376,2731.9,2730.7,0.01475579]
[1769788010473,0.31535376,2731.9,2730.9,0.01475579]
[1769788010899,0.31535376,2731.9,2730.8,0.08853474]
[1769788011114,0.31535376,2731.9,2730.9,0.08853474]
[1769788011674,1.41759082,2732.8,2731.3,0.01475579]
[1769788012069,1.41759082,2732.8,2731.5,0.01475579]
[1769788012270,13.46887575,2733.0,2731.3,0.01475579]
[1769788012481,13.46887575,2733.0,2731.7,0.01475579]
[1769788012682,0.767,2733.1,2731.7,0.01475579]
[1769788013306,0.767,2733.1,2731.3,0.01475579]
[1769788013501,0.767,2733.1,2731.3,0.93005581]
[1769788013702,0.767,2733.1,2731.7,0.01475579]
[1769788013703,1.42358758,2733.1,2731.7,0.01475579]
[1769788014005,13.46887575,2733.3,2731.7,0.01475579]
[1769788014211,0.30271306,2733.4,2732.5,0.01475579]
[1769788014377,0.30271306,2733.4,2732.3,0.01475579]
[1769788014572,0.30271306,2733.4,2732.5,0.01475579]
[1769788014785,0.30271306,2733.4,2732.0,0.01475579]
[1769788015005,13.77158881,2733.4,2732.0,0.01475579]
[1769788015200,1.37715888,2733.3,2732.0,0.01475579]
[1769788015591,1.37715888,2733.3,2732.2,0.01475579]
[1769788015791,13.77158881,2733.4,2732.4,0.01475579]
[1769788016109,13.77158881,2733.4,2732.2,0.01475579]
[1769788017079,13.77158881,2733.4,2731.9,0.01475579]
[1769788017279,13.77158881,2733.4,2732.1,0.01475579]
[1769788017479,13.77158881,2733.4,2731.9,0.01475579]
[1769788017778,1.37715888,2733.3,2731.9,0.01475579]
[1769788017976,14.84603463,2733.3,2731.7,0.01475579]
[1769788018283,14.84603463,2733.3,2731.9,0.01475579]
[1769788018689,0.767,2733.2,2731.9,0.01475579]
[1769788018980,0.767,2733.2,2732.3,0.01475579]
[1769788019307,0.30271306,2733.4,2732.5,0.01475579]
[1769788019508,0.30271306,2733.4,2732.3,0.01475579]
[1769788020199,0.30271306,2733.4,2731.9,0.01475579]
[1769788020200,13.77158881,2733.4,2731.9,0.01475579]
[1769788020822,13.77158881,2733.4,2732.3,0.01475579]
[1769788021107,13.77158881,2733.4,2731.3,0.01475579]
[1769788021108,13.46887575,2733.2,2731.3,0.01475579]
[1769788021333,13.46887575,2733.0,2731.2,0.01475579]
[1769788021479,0.30271306,2733.4,2731.9,3.66043954]
[1769788021676,0.30271306,2733.4,2732.3,0.01475579]
[1769788021899,0.30271306,2733.4,2732.2,0.01475579]
[1769788022327,0.30271306,2733.4,2731.8,0.78175579]
[1769788022505,0.30271306,2733.4,2732.0,0.91506403]
[1769788022716,0.30271306,2733.4,2732.1,0.01475579]
[1769788022919,0.30271306,2733.4,2731.8,0.767]
[1769788023087,0.001,2733.0,2731.8,0.767]
[1769788023592,0.001,2733.0,2731.9,0.91511402]
[1769788023790,0.30271306,2733.4,2732.0,0.5490128]
[1769788023991,0.30271306,2733.4,2732.2,0.01475579]
[1769788025710,0.30271306,2733.4,2732.3,0.91498005]
[1769788026195,0.30271306,2733.4,2732.2,0.92974723]
[1769788027117,0.30271306,2733.4,2732.2,0.91501339]
[1769788027621,0.30271306,2733.4,2732.3,0.45898233]
[1769788027919,0.30271306,2733.4,2732.4,0.91494656]
[1769788028625,0.30271306,2733.4,2732.5,0.01475579]
[1769788029408,0.30271306,2733.4,2732.7,0.01475579]
[1769788029964,0.72047611,2734.9,2732.8,0.767]
[1769788029965,13.20431402,2734.9,2732.8,0.767]
[1769788030097,1.3204314,2734.8,2733.1,0.01475579]
[1769788030297,1.3204314,2734.8,2733.3,0.01475579]
[1769788030499,13.20431402,2735.0,2733.1,0.01475579]
[1769788030895,13.20431402,2735.0,2733.1,0.78175579]
[1769788031300,13.20431402,2735.0,2733.1,0.767]
[1769788031631,13.20431402,2735.0,2733.2,0.01475579]
[1769788032032,13.20431402,2735.0,2733.3,0.9146453]
[1769788032236,13.20431402,2735.0,2733.4,0.47355402]
[1769788032237,1.3204314,2735.0,2733.4,0.47355402]
[1769788032438,0.2973857,2735.4,2733.8,0.01475579]
[1769788032643,0.2973857,2735.4,2734.0,0.01475579]
[1769788033931,0.2973857,2735.4,2734.0,0.9291584]
[1769788035442,0.001,2735.2,2734.0,0.9291584]
[1769788036330,0.001,2735.2,2734.0,0.01475579]
[1769788036505,13.20531402,2735.2,2734.0,0.46018163]
[1769788036711,13.20431402,2735.0,2733.2,0.91466076]
[1769788037018,13.20431402,2735.0,2733.4,0.91461081]
[1769788037218,13.20431402,2735.0,2733.4,0.91460778]